Cogmind - Beta 15 @@@ ROGUE MODE // 2025.05.15 @ 17:26:00 Player: jumpy Result: Destroyed by B-75 Beast with Magnetic Acceleration Cannon Performance ------------- Evolutions (3) 1500 Regions Visited (6) 1200 Robots Destroyed (90) 450 Value Destroyed (2648) 2648 Prototype IDs (4) 80 Alien Tech Used (0) 0 Bonus (0) 0 TOTAL SCORE: 5878 Bonus ------- None Cogmind --------- Core Integrity 0/700 Matter 300/300 Energy 100/100 System Corruption 4% Temperature Cool (12) Movement Core (50) Location -7/Lower Caves Parts ------- > --- POWER (1) -------- (None) > --- PROPULSION (4) --- (None) > --- UTILITY (5) ------ (None) > --- WEAPON (3) ------- (None) > --- INVENTORY (5) ---- Improved Ion Engine Pulse Rifle High-powered Shotgun Gauss Rifle Missile Launcher Peak State ------------ > --- POWER ------------ Improved Deuterium Engine > --- PROPULSION ------- Armored Treads Advanced Treads Medium Treads Medium Treads > --- UTILITY ---------- High-capacity Storage Unit Improved Melee Analysis Suite Improved Melee Analysis Suite Improved Medium Armor Plating Hacking Suite > --- WEAPON ----------- Pulse Rifle Katana Katana > --- INVENTORY -------- Improved Ion Engine Improved Ion Engine Improved Ion Engine Nuclear Core Light Treads Pulse Rifle Improved Assault Rifle High-powered Shotgun Gauss Rifle Gauss Rifle Assault Cannon Missile Launcher Missile Launcher Great Maul Katana [Rating: 47] Favorites ----------- Power Improved Deuterium Engine Engine Improved Deuterium Engine Power Core Nuclear Core Propulsion Light Treads Treads Light Treads Utility High-capacity Storage Unit Device Seismic Detector Storage High-capacity Storage Unit Processor Improved Melee Analysis Suite Hackware Hacking Suite Protection Improved Light Armor Plating Weapon Katana Energy Gun Heavy Laser Ballistic Gun High-powered Shotgun Ballistic Cannon Light Cannon Slashing Weapon Katana Build | -11 -10 -9 -8 -7 -7 -7 ------- Run | Yrd Mat Mat Mat Fac Low Low Slots Evolved 6 | . . 2 2 2 . . Power . | . . . . . . . Propulsion 2 | . . 1 1 . . . Utility 3 | . . 1 1 1 . . Weapon 1 | . . . . 1 . . Parts Attached 63 | 7 7 15 13 20 1 . Power 11 | 1 2 3 2 3 . . Engine 10 | 1 2 3 1 3 . . Core 1 | . . . 1 . . . Reactor . | . . . . . . . Propulsion 21 | 2 . 6 6 6 1 . Treads 21 | 2 . 6 6 6 1 . Leg . | . . . . . . . Wheel . | . . . . . . . Hover . | . . . . . . . Flight . | . . . . . . . Utility 14 | 2 3 1 2 6 . . Device 4 | 1 1 1 . 1 . . Storage 4 | 1 2 . 1 . . . Processor 2 | . . . . 2 . . Hackware 1 | . . . . 1 . . Protection 3 | . . . 1 2 . . Artifact . | . . . . . . . Weapon 17 | 2 2 5 3 5 . . Energy Gun 7 | . 1 2 1 3 . . Energy Cannon . | . . . . . . . Ballistic Gun 7 | 2 . 3 2 . . . Ballistic Cannon 1 | . 1 . . . . . Launcher . | . . . . . . . Special Weapon . | . . . . . . . Impact Weapon . | . . . . . . . Slashing Weapon 2 | . . . . 2 . . Piercing Weapon . | . . . . . . . Special Melee Weapon . | . . . . . . . Unidentified Prototypes 4 | . . 3 1 . . . Parts Lost 24 | . 1 1 9 2 1 10 Power 3 | . . 1 1 . . 1 Propulsion 9 | . . . 3 . . 6 Utility 9 | . 1 . 3 2 1 2 Weapon 3 | . . . 2 . . 1 Highest Loss Streak 10 | . 1 1 6 1 1 10 To Critical Strikes . | . . . . . . . Average Backups 14 | 3 6 16 18 13 19 19 Power 3 | . 1 2 2 3 4 3 Propulsion 2 | 1 2 4 4 . 2 1 Utility . | . 1 . . . . . Weapon 8 | . 1 8 10 9 13 12 Tool/Special . | . . . . . . . Unused Backups 23 | . . 7 1 . 1 14 Power 3 | . . 2 . . . 1 Propulsion 2 | . . 1 1 . . . Utility 1 | . . . . . . 1 Weapon 17 | . . 4 . . 1 12 Tool/Special . | . . . . . . . Average Slot Usage (%) 94 | . 99 99 91 91 93 83 Engine 8 | . 14 11 8 5 7 6 Treads 30 | . 28 32 35 29 30 26 Device 11 | . 13 22 14 . 7 6 Storage 9 | . 14 11 9 7 7 6 Processor 3 | . . . . 9 7 6 Hackware 2 | . . . . 6 1 . Protection 3 | . . . 5 4 7 6 Energy Gun 5 | . 12 2 . 6 7 5 Ballistic Gun 8 | . 7 16 17 1 . . Ballistic Cannon 1 | . 8 2 . . . . Slashing Weapon 6 | . . . . 13 15 13 Peak Build Rating 47 | 7 8 20 28 47 47 43 Average Rating 26 | 5 7 18 22 39 43 38 On Entrance 20 | . 7 8 20 16 47 42 Naked Turns 4 | . . . . . . 4 Heaviest Build 65 | 11 50 55 60 65 65 65 Greatest Support 100 | 40 40 60 83 100 88 92 Greatest Overweight (x) 17 | . 1 . . . . 17 Average Overweight (x) . | . . . . . . . Largest Inventory Capacity 25 | 8 20 20 25 20 20 20 Average Capacity 18 | 7 16 20 20 20 20 19 Most Carried 20 | 6 8 20 20 19 20 20 Average Carried 14 | 4 6 16 18 13 19 19 Final Capacity 20 | 8 20 20 20 20 20 5 Final Carried 20 | 6 8 20 14 19 20 5 Class Distribution -------------------- 38% | Gladiator 32% | Scavenger-Mutant 29% | Mutant Dominant Class ---------------- Mutant | -10/Materials Scavenger-Mutant | -9/Materials Scavenger-Mutant | -8/Materials Gladiator | -7/Factory Gladiator | -7/Lower Caves Gladiator | -7/Lower Caves Resources | -11 -10 -9 -8 -7 -7 -7 ----------- Run | Yrd Mat Mat Mat Fac Low Low Matter Collected 1793 | 298 134 558 436 336 28 3 Remotely . | . . . . . . . Salvage Created 2948 | 115 340 706 744 816 227 . Parts 183 | 8 29 40 42 55 9 . Haulers Intercepted 5 | . 1 3 1 . . . Recyclers Shooed 2 | . 1 . 1 . . . Parts Field Recycled . | . . . . . . . Retrieved Matter . | . . . . . . . Parts Self-Destructed 7 | . . . . . 7 . Prevented . | . . . . . . . Kills | -11 -10 -9 -8 -7 -7 -7 ------- Run | Yrd Mat Mat Mat Fac Low Low Combat Hostiles Destroyed 69 | . 11 19 20 14 5 . Melee 16 | . . . . 14 2 . Guns 47 | . 6 18 20 . 3 . Cannons 6 | . 5 1 . . . . Classes Destroyed 15 | 2 4 3 3 3 . . Worker 4 | . . 1 2 1 . . Builder 2 | . . . 1 1 . . Tunneler 5 | 3 . . . 2 . . Hauler 5 | . 1 3 1 . . . Recycler 2 | 1 . . . 1 . . Operator 1 | . . 1 . . . . Watcher 2 | . 1 1 . . . . Swarmer 20 | . 6 4 6 3 1 . Grunt 28 | . 5 9 8 5 1 . Duelist 1 | . . . . 1 . . Sentry 12 | . . 6 4 1 1 . Specialist 2 | . . . . 2 . . Hunter 3 | . . . 1 . 2 . Programmer 2 | . . . . 2 . . Heavy 1 | . . . 1 . . . Best Kill Streak 9 | 3 5 6 9 5 1 . Combat Bots Only 5 | . 5 5 5 5 1 . Max Kills in Single Turn 2 | 1 1 2 2 1 1 . Gunslinging . | . . . . . . . Exploded . | . . . . . . . Melee 1 | . . . . 1 1 . Uniques/NPCs Destroyed . | . . . . . . . Combat | -11 -10 -9 -8 -7 -7 -7 -------- Run | Yrd Mat Mat Mat Fac Low Low Hostile Shots Fired 544 | . 44 71 170 124 76 59 Missed 155 | . 14 21 48 35 24 13 Hits 389 | . 30 50 122 89 52 46 Melee 3 | . . . . 3 . . Projectile 386 | . 30 50 122 86 52 46 Critical Strikes 10 | . . 2 3 . 1 4 Damage Taken 5578 | . 298 602 1904 1298 392 1084 Core 870 | . 25 72 73 197 27 476 Absorbed by Shields 287 | . . . . . 163 124 Core Remaining (%) 89 | 100 90 82 86 . . . Volleys Fired 165 | 14 30 54 46 7 11 3 Largest 2 | 2 2 2 2 1 1 1 Hottest 80 | 40 70 80 50 69 69 69 Shots Fired 308 | 28 60 108 91 7 11 3 Gun 277 | 28 44 93 91 7 11 3 Cannon 31 | . 16 15 . . . . Launcher . | . . . . . . . Special . | . . . . . . . Kinetic 244 | 28 32 93 91 . . . Thermal 64 | . 28 15 . 7 11 3 Explosive . | . . . . . . . Electromagnetic . | . . . . . . . Robot Hit Streak 12 | 5 8 11 12 1 2 4 Robot Miss Streak 6 | 2 4 5 6 2 4 . Penetration Max . | . . . . . . . Secondary Targets 2 | . 1 . 1 . . . Max Gunslinging Chain 1 | . 1 . 1 . . . Shots Hit Robots 276 | 18 30 82 69 42 20 15 Core Hits 148 | 8 23 41 49 18 7 2 Critical Kills 1 | . . 1 . . . . Critical Parts Destroyed 2 | . . . 2 . . . Critical Strikes 18 | . 1 2 2 6 4 3 Burn 1 | . . 1 . . . . Destroy 3 | . . 1 2 . . . Blast 1 | . 1 . . . . . Sever 13 | . . . . 6 4 3 Melee Attacks 85 | . . . . 49 23 13 Impact . | . . . . . . . Slashing 85 | . . . . 49 23 13 Piercing . | . . . . . . . Sneak Attacks 5 | . . . . 5 . . Combat Hostiles . | . . . . . . . Follow-up Attacks 10 | . . . . 3 5 2 Damage Inflicted 6186 | 137 389 1655 1429 1524 597 455 Guns 3455 | 137 236 1465 1427 54 77 59 Cannons 299 | . 124 175 . . . . Explosions . | . . . . . . . Melee 2382 | . . . . 1470 520 392 Ramming 50 | . 29 15 2 . . 4 Kinetic 3286 | 137 205 1517 1427 . . . Thermal 468 | . 155 123 . 54 77 59 Explosive . | . . . . . . . Electromagnetic . | . . . . . . . Impact . | . . . . . . . Slashing 2382 | . . . . 1470 520 392 Piercing . | . . . . . . . Highest Corruption 4 | . . 1 . 4 4 4 Average Corruption 2 | . . 1 . 3 4 4 Corruption Purged . | . . . . . . . Corruption Blocked . | . . . . . . . Effects 22 | . . 7 . . 9 6 Message Errors 5 | . . 2 . . 2 1 Matter Fused 5 | . . 1 . . 1 3 Heat Flow Errors 2 | . . . . . 1 1 Energy Discharges 2 | . . . . . 2 . Data Loss (minor) 4 | . . 2 . . 2 . Data Loss (major) 2 | . . 1 . . 1 . Alerts 2 | . . 1 . . . 1 Overload Shots . | . . . . . . . Overflow Damage 138 | . . 2 . 120 16 . Projectiles . | . . . . . . . Explosions . | . . . . . . . Melee 138 | . . 2 . 120 16 . Knockbacks 8 | . 1 7 . . . . Impact . | . . . . . . . Kinetic 7 | . 1 6 . . . . Secondary 1 | . . 1 . . . . Self-Inflicted Damage . | . . . . . . . Shots . | . . . . . . . Rammed 8 | . 4 2 1 . . 1 Targets Rammed 9 | . 4 2 2 . . 1 Kicked . | . . . . . . . Crushed 1 | . . . 1 . . . Highest Temperature 334 | . 90 170 23 54 183 334 Average Temperature 52 | . 28 64 6 23 41 145 Received Heat Transfer 1849 | . 81 270 405 360 73 660 Effects 1 | . . . . . . 1 Interference 1 | . . . . . . 1 Siege Activations . | . . . . . . . Martial Activations . | . . . . . . . Shielding Activations . | . . . . . . . Robots Disrupted . | . . . . . . . Combat Hostiles . | . . . . . . . Robots Corrupted 1 | . . 1 . . . . Combat Hostiles . | . . . . . . . Parts Fried 2 | . . 2 . . . . Impact Corruptions 1 | . . 1 . . . . Robots Melted . | . . . . . . . Combat Hostiles . | . . . . . . . Parts Melted 2 | . 1 . . 1 . . Heat Transferred 1164 | . 350 444 . 111 148 111 Parts Sabotaged . | . . . . . . . Parts Stolen . | . . . . . . . Parts Stripped . | . . . . . . . Power Chain Reactions . | . . . . . . . Alert | -11 -10 -9 -8 -7 -7 -7 ------- Run | Yrd Mat Mat Mat Fac Low Low Maximum Alert Level 1 | . . 1 1 . . . Low Security (%) 93 | 100 100 90 76 100 . . Level 1 6 | . . 9 23 . . . Level 2 . | . . . . . . . Level 3 . | . . . . . . . Level 4 . | . . . . . . . Level 5 . | . . . . . . . High Security . | . . . . . . . Max Security . | . . . . . . . Peak Influence 284 | 10 104 223 284 138 . . Initial 113 | . . 27 90 113 . . Average 82 | . 39 103 159 59 . . Influence Increases 1980 | 20 304 591 560 355 150 . Destroy 0b10 Robot/C 1380 | . 220 380 400 280 100 . Destroy 0b10 Robot/NC 105 | 20 10 30 20 25 . . Destroy Leader 354 | . 44 118 122 50 20 . Disable Machine 15 | . . . 15 . . . Destroy Structure 6 | . . 3 3 . . . Partial Spotted 15 | . . 15 . . . . Lose Combat Pursuer 105 | . 30 45 . . 30 . Influence Decreases 1980 | 20 239 442 524 503 246 6 Entered New Map 340 | . . 38 124 137 39 2 Time Decay 1500 | 20 229 394 310 346 197 4 Lost Part 140 | . 10 10 90 20 10 . Squads Dispatched 16 | . 1 2 5 8 . . Investigation 1 | . . . 1 . . . Extermination 2 | . . . . 2 . . Reinforcement 8 | . 1 2 2 3 . . Assault . | . . . . . . . Garrison 5 | . . . 2 3 . . Intercept . | . . . . . . . Searches Triggered . | . . . . . . . Construction Impeded . | . . . . . . . Haulers Reinforced . | . . . . . . . Active Scanning Responses . | . . . . . . . Cargo Convoy Interrupts . | . . . . . . . Stealth | -11 -10 -9 -8 -7 -7 -7 --------- Run | Yrd Mat Mat Mat Fac Low Low Distress Signals 8 | . 2 1 4 1 . . Communications Jammed . | . . . . . . . Distress Signals . | . . . . . . . Times Spotted 107 | . 17 28 35 17 6 4 Peak Tracking Total 9 | . 5 5 9 4 3 4 Tactical Retreats 5 | . 1 2 . . 2 . Traps | -11 -10 -9 -8 -7 -7 -7 ------- Run | Yrd Mat Mat Mat Fac Low Low Traps Triggered 5 | . . 1 1 3 . . Indirectly . | . . . . . . . Trap Hack Attempts . | . . . . . . . Triggered . | . . . . . . . Disarmed . | . . . . . . . Reprogrammed . | . . . . . . . Reused . | . . . . . . . Traps Extracted . | . . . . . . . Installed . | . . . . . . . Triggered . | . . . . . . . Machines | -11 -10 -9 -8 -7 -7 -7 ---------- Run | Yrd Mat Mat Mat Fac Low Low Machines Disabled 2 | . . 1 1 . . . Max in Single Turn 1 | . . 1 1 . . . Machines Repaired . | . . . . . . . Machines Dismantled . | . . . . . . . Machines Sabotaged . | . . . . . . . Overloaded Fab Kills . | . . . . . . . Hacking | -11 -10 -9 -8 -7 -7 -7 --------- Run | Yrd Mat Mat Mat Fac Low Low Machines Accessed 1 | . . . . 1 . . Terminals . | . . . . . . . Fabricators 1 | . . . . 1 . . Repair Stations . | . . . . . . . Recycling Units . | . . . . . . . Scanalyzers . | . . . . . . . Garrison Access . | . . . . . . . Total Hacks 2 | . . . . 2 . . Successful 1 | . . . . 1 . . Failed 1 | . . . . 1 . . Catastrophic . | . . . . . . . Database Lockouts . | . . . . . . . Manual . | . . . . . . . Terminals . | . . . . . . . Fabricators 2 | . . . . 2 . . Repair Stations . | . . . . . . . Recycling Units . | . . . . . . . Scanalyzers . | . . . . . . . Garrison Access . | . . . . . . . Terminal Hacks . | . . . . . . . Fabricator Hacks 1 | . . . . 1 . . Network Status 1 | . . . . 1 . . Repair Station Hacks . | . . . . . . . Recycling Unit Hacks . | . . . . . . . Scanalyzer . | . . . . . . . Garrison Access Hacks . | . . . . . . . Unauthorized Hacks . | . . . . . . . Terminals . | . . . . . . . Fabricators . | . . . . . . . Repair Stations . | . . . . . . . Recycling Units . | . . . . . . . Scanalyzers . | . . . . . . . Garrison Access . | . . . . . . . Data Cores Recovered . | . . . . . . . Used . | . . . . . . . Hacking Detections 1 | . . . . 1 . . Full Trace Events . | . . . . . . . Feedback Events . | . . . . . . . Feedback Blocked . | . . . . . . . Robot Schematics Acquired . | . . . . . . . Robots Built . | . . . . . . . Authchips . | . . . . . . . Time . | . . . . . . . Total Robot Build Rating . | . . . . . . . Part Schematics Acquired . | . . . . . . . Parts Built . | . . . . . . . Authchips . | . . . . . . . Time . | . . . . . . . Total Part Build Rating . | . . . . . . . Parts Repaired . | . . . . . . . Time . | . . . . . . . Parts Recycled . | . . . . . . . Recycled Matter . | . . . . . . . Retrieved Matter . | . . . . . . . Retrieved Components . | . . . . . . . Parts Scanalyzed . | . . . . . . . Part Schematics Acquired . | . . . . . . . Parts Damaged . | . . . . . . . Bothacking | -11 -10 -9 -8 -7 -7 -7 ------------ Run | Yrd Mat Mat Mat Fac Low Low Used RIF Installer . | . . . . . . . Robots Hacked . | . . . . . . . Non-combat . | . . . . . . . Combat . | . . . . . . . Robot Hacks Applied . | . . . . . . . Relay Couplers Released . | . . . . . . . Fabnet Peak Effective % . | . . . . . . . Robots Rewired . | . . . . . . . Allies Hacked . | . . . . . . . Hacks Repelled . | . . . . . . . Allies | -11 -10 -9 -8 -7 -7 -7 -------- Run | Yrd Mat Mat Mat Fac Low Low Total Allies . | . . . . . . . Largest Group . | . . . . . . . Highest-Rated Group . | . . . . . . . Highest-Rated Ally . | . . . . . . . Total Orders . | . . . . . . . Ally Attacks . | . . . . . . . Total Damage . | . . . . . . . Kills . | . . . . . . . Allies Corrupted . | . . . . . . . Allies Melted . | . . . . . . . Intel | -11 -10 -9 -8 -7 -7 -7 ------- Run | Yrd Mat Mat Mat Fac Low Low Active Infowar (turns) 2567 | 90 668 1234 575 . . . Terrain 1731 | . . 1234 497 . . . Seismic 2567 | 90 668 1234 575 . . . Robot Analysis Total . | . . . . . . . Derelict Logs Recovered 3 | . . . . . 2 1 Drone Launches . | . . . . . . . Drone Recoveries . | . . . . . . . Exploration | -11 -10 -9 -8 -7 -7 -7 ------------- Run | Yrd Mat Mat Mat Fac Low Low Turns Passed 5061 | 234 698 1234 690 1301 618 286 Spaces Moved 2490 | 116 272 581 296 703 361 161 Core 12 | 3 . . . . . 9 Treads 2478 | 113 272 581 296 703 361 152 Legs . | . . . . . . . Wheels . | . . . . . . . Hover . | . . . . . . . Flight . | . . . . . . . Fastest Speed 50 | 50 160 160 160 145 145 50 Average Speed 162 | 157 210 160 161 156 147 152 Slowest Speed 900 | 160 240 160 166 163 148 900 Overloaded Moves . | . . . . . . . Propulsion Burnouts . | . . . . . . . Robots Hopped . | . . . . . . . Potential Cave-ins 2 | . . . . . . 2 Cave-ins Triggered . | . . . . . . . Exploration Rate (%) 33 | 7 42 47 32 17 54 36 Regions Visited 6 Branch Regions 2 Pre-discovered Areas . | . . . . . . . Known Exits Taken . | . . . . . . . Unknown Exits Taken 6 | 1 1 1 1 1 1 . Scrap Searched 1 | . . . . . 1 . Spaces Dug . | . . . . . . . Terrain Destroyed . | . . . . . . . Melee . | . . . . . . . Projectile . | . . . . . . . AOE . | . . . . . . . Terrain Rammed . | . . . . . . . Walls Destroyed . | . . . . . . . Machines Disabled . | . . . . . . . Actions | -11 -10 -9 -8 -7 -7 -7 --------- Run | Yrd Mat Mat Mat Fac Low Low Total 3086 | 142 335 778 419 822 410 180 Wait 197 | . 18 93 40 27 17 2 Move 2484 | 115 271 580 295 702 360 161 Hop . | . . . . . . . Pick Up 39 | 6 2 18 3 8 2 . Fast Attach 17 | 7 1 1 1 7 . . Attach 18 | . 1 3 7 5 . 2 Detach . | . . . . . . . Swap 48 | . 5 15 14 13 1 . Drop 35 | . 3 12 11 8 1 . Fire 165 | 14 30 54 46 7 11 3 Melee 74 | . . . . 45 18 11 Ram . | . . . . . . . Kick . | . . . . . . . Crush 9 | . 4 2 2 . . 1 Escape Stasis . | . . . . . . . Rewire . | . . . . . . . Trap . | . . . . . . . Miscellaneous . | . . . . . . . Route ------- -11/Scrapyard -10/Materials (discovered 2 exits: [*Mat] / [*Min]) -9/Materials (discovered 2 exits: [*Mat] / [*Min]) -8/Materials (discovered 2 exits: *Fac / [*Sto]) -7/Factory -7/Lower Caves (discovered 2 exits: [*Low] / [*Dat]) -7/Lower Caves History --------- Turn | Location | Event 17 | -11/Scrapyard | Discovered new exit (range 16) 235 | -11/Scrapyard | Entered Materials 311 | -10/Materials | Build established: Mutant 527 | -10/Materials | Discovered new exit (range 13) 886 | -10/Materials | Discovered new exit (range 13) 933 | -10/Materials | Entered another Materials area 933 | -9/Materials | Evolved 2 slots: Propulsion x1, Utility x1 1234 | -9/Materials | Build established: Scavenger-Mutant 1819 | -9/Materials | Discovered new exit (range 12) 1990 | -9/Materials | Discovered new exit (range 12) 2167 | -9/Materials | Entered another Materials area 2167 | -8/Materials | Evolved 2 slots: Propulsion x1, Utility x1 2676 | -8/Materials | Garrison activated, responded to threat 2722 | -8/Materials | Lost 6 parts (1p2n2u1w) 2843 | -8/Materials | Discovered new exit (range 5) 2847 | -8/Materials | Discovered new exit (range 11) 2857 | -8/Materials | Entered Factory 2857 | -7/Factory | Evolved 2 slots: Utility x1, Weapon x1 2882 | -7/Factory | Build established: Mutant 3397 | -7/Factory | Build established: Gladiator 3477 | -7/Factory | Garrison activated, responded to threat 4139 | -7/Factory | Discovered new exit (range 14) 4158 | -7/Factory | Entered Lower Caves 4312 | -7/Lower Caves | Attracted the attention of an 0b10 checkpoint 4436 | -7/Lower Caves | Learned Factory trap positions 4751 | -7/Lower Caves | Discovered new exit (range 14) 4758 | -7/Lower Caves | A Derelict revealed a hidden shortcut to meet someone special 4776 | -7/Lower Caves | Entered another Lower Caves area 4806 | -7/Lower Caves | Learned Factory garrison access intel 4987 | -7/Lower Caves | Spotted B-75 Beast 5030 | -7/Lower Caves | Core integrity fell below 50% 5054 | -7/Lower Caves | Core integrity fell below 20% 5058 | -7/Lower Caves | Released all parts (3) 5062 | -7/Lower Caves | Destroyed by B-75 Beast with Magnetic Acceleration Cannon Last Messages --------------- 05023_ Critical hit (Meltdown: +240). 05026_ B-75 Beast Lyr. Medium Armor Plating severed. 05026_ Imp. Shield Generator destroyed. 05029_ Lgt. Treads destroyed. 05030_ Overheating: System interference. 05030_ Katana temporarily disabled. 05031_ Slammed into B-75 Beast. 05035_ Med. Treads destroyed. 05038_ Destroyed Med. Reflective Plating. 05038_ Med. Treads destroyed. 05038_ Adv. Treads destroyed. 05038_ Katana destroyed. 05041_ Knocked back. 05044_ Imp. Deuterium Engine destroyed. 05044_ Knocked back. 05045_ HX/VYVB6VAG8JZE>EM=PJ9:UI:R9#,/ 05047_ Knocked back. 05058_ Released Hcp. Storage Unit. 05058_ Released Katana. 05058_ Released Imp. Melee Analysis Suite. Map ----- +----------------------------------------------------+ | ?????????????????????????????????????????????????? | | ?????????????????????????????????????????????????? | | ?????????????????????????????? ????????????????? | | ????????????????????????????? ???????????????? | | ????????????????????????????? ?????? ????????? | | ????????????????????????????? ??? ????????? | | ????????????????????????????? ??? ?????????? | | ?????????????????????????????? #??? #?????????? | | ?????????????????????????????? #??? ###???????? | | ??????????????????????????????# #??? #####???? | | ??????????????????????????????# #### ## ????? | | ?????????????????????????????## "# #?# ????? | | ?????????????????#???????????# ##?# #????? | | ????????????????## ??????????# ""#?# #????? | | ????????????????# #????????## " ?## #####? | | ???????????????## #??????## % #??# % ?? | | ???????????????# ####### [ #??# %% ??? | | ????????????????# ! *[/%/ #??# % #???? | | ?????????????????# [BB %[]*] ##?#% #???? | | ????????????# ### BB[%!!# % ### % ##??? | | ????????????# %%[%# ## #### | | ???????????????### % /##/ ## # | | ?????????????????# #### ### ## # | | ?????????????????# ## #??# #?######### # | | ????????????????# ??## ##?# ???????## # | | ????????????????# ????#@ #?# # ??????#% | | ????????????????# ?????# % #?### ? ?????# | | ????????????????#??????# ## #????# #? ????# ### | | ???????????????????????# #?##????? ??? ???# #?# | | ???????????????????????# #???????? ??? ??# #?# | | ???????????????????????# ???????? ??????# ### | | ??????????????????????? ????????? ??????# ## | | ??????????????????????? # ?????????# ?????# ## | | ?????????????????????? ? ????????????????# | | ?????????????????????? # ?#????????????????# | | ????????????????????? ##??????????????????###### | | ??????????????????????#?????????????????????????## | | ?????????????????????????????????????????????????? | | ?????????????????????????????????????????????????# | | ????????????????????????????????????????????????## | | ????????????????????????????????????????????????# | | ????????????????????????????????????????????????# | | ????????????????????????????????????????????????# | | ????????????????????????????????????????????????# | | ????????????????????????????????????????????????# | | ????????????????????????????????????????????????# | | ????????????????????????????????????????????????# | | ????????????????????????????????????????######?## | | ???????????????????????????????????????## #?# | | ???????????????????????????????????????# #?# | +----------------------------------------------------+ Best States ------------- Heat Dissipation 34 Energy Generation 16 Energy Capacity 290 Matter Stores 300 Matter Capacity 300 Sight Range 16 Terrain Scan Range 16 Terrain Scan Density 10 Armor Coverage 225 Evasion (%) 50 Melee Accuracy 12 Recoil Reduction 4 Offensive Hacking 10 Item Schematics ----------------- None Robot Schematics ------------------ None Fabricated ------------ Nothing Repaired ---------- Nothing Alien Tech Used ----------------- None Achievements -------------- None Challenges ------------ None Game ------ Seed AssemblySeismicDrivehammer Manual? 0 Play Time 00:24:05 Cumulative 94.3 hours Start 2025.05.15 @ 17:03:20 End 2025.05.15 @ 17:26:00 Sessions 1 Manual Loads 0 Difficulty Rogue Special Mode None Game No. 237 Rogue 237 Adventurer 0 Explorer 0 Win Type - Total 2 Types 2/0/0/0/0/0/0/0/0/0 Lore% 42 Gallery% 47 Achievement% 39 Wizard Run 0 Options --------- Layout 0 ASCII 0 Keyboard 0 Movement Numpad Keybinds 0 Fullscreen 2 Font 18/Terminus Map View 76x50 Zoom Use 0% Tactical HUD 1 Map Filters NONE Filters NONE Steam 1 RUN: 85e976b8-f521-4aee-8d0c-4af367905bc4